fUST/lending_fUST_20251012
["ID","MTS","AMOUNT","RATE_DAILY","PERIOD"]
[390906190,1760209554216,500.0,0.00021917,2]
[390906191,1760209554468,500.0,0.00021917,2]
[390906192,1760209554703,500.0,0.00021917,2]
[390906193,1760209554946,500.0,0.00021917,2]
[390906194,1760209555186,500.0,0.00021917,2]
[390906195,1760209555421,252.25,0.00021917,2]
[390906196,1760209555444,247.75,0.00021917,2]
[390906197,1760209555653,500.0,0.00021917,2]
[390906198,1760209555883,500.0,0.00021917,2]
[390906199,1760209556124,500.0,0.00021917,2]
[390906200,1760209556371,500.0,0.00021917,2]
[390906201,1760209556663,500.0,0.00021917,2]
[390906202,1760209556902,500.0,0.00021917,2]
[390906203,1760209557131,500.0,0.00021917,2]
[390906204,1760209557371,500.0,0.00021917,2]
[390906205,1760209557601,500.0,0.00021917,2]
[390906206,1760209557847,500.0,0.00021917,2]
[390906207,1760209558083,500.0,0.00021917,2]
[390906208,1760209558411,500.0,0.0002259,2]
[390906209,1760209558437,500.0,0.00022591,2]
[390906210,1760209558521,500.0,0.00021917,2]
[390906211,1760209558667,500.0,0.00022591,2]
[390906212,1760209558770,153.1,0.00021917,2]
[390906213,1760209558897,263.02,0.00022591,2]
[390906214,1760209560894,4310.95,0.0002259,2]
[390906215,1760209561189,4310.95,0.0002259,2]
[390906216,1760209561464,1378.11,0.0002259,2]
[390906217,1760209561488,2932.84,0.0002259,2]
[390906218,1760209561699,4310.95,0.0002259,2]
[390906219,1760209561959,2756.22,0.0002259,2]
[390906220,1760209561981,1554.73,0.0002259,2]
[390906221,1760209562205,4310.95,0.0002259,2]
[390906222,1760209562462,4134.33,0.0002259,2]
[390906223,1760209562488,176.62,0.0002259,2]
[390906224,1760209562725,4310.95,0.0002259,2]
[390906225,1760209562976,4310.95,0.0002259,2]
[390906226,1760209563228,1201.49,0.0002259,2]
[390906227,1760209563254,3109.46,0.0002259,2]
[390906228,1760209563467,4310.95,0.0002259,2]
[390906229,1760209563708,2579.6,0.0002259,2]
[390906230,1760209563732,1731.35,0.0002259,2]
[390906231,1760209563958,4310.95,0.0002259,2]
[390906232,1760209564033,500.0,0.00021917,2]
[390906233,1760209564205,3457.71,0.0002259,2]
[390906234,1760209564229,853.24,0.0002259,2]
[390906235,1760209564285,500.0,0.00021917,2]
[390906236,1760209564567,4310.95,0.0002259,2]
[390906237,1760209564705,4310.95,0.0002259,2]
[390906238,1760209564949,24.87,0.0002259,2]
[390906239,1760209564972,4286.08,0.0002259,2]
[390906240,1760209565050,5000.0,0.00022591,2]
[390906241,1760209565203,713.93,0.0002259,2]
[390906242,1760209565226,3597.02,0.0002259,2]
[390906243,1760209565366,500.0,0.00022591,2]
[390906244,1760209565474,4310.95,0.0002259,2]
[390906245,1760209566066,1592.04,0.0002259,2]
[390906246,1760209566088,2718.91,0.0002259,2]
[390906247,1760209566342,4310.95,0.0002259,2]
[390906248,1760209566587,2970.15,0.0002259,2]
[390906249,1760209566608,1340.8,0.0002259,2]
[390906250,1760209567003,4310.95,0.0002259,2]
[390906251,1760209567197,4310.95,0.0002259,2]
[390906252,1760209569255,37.31,0.00022591,2]
[390906253,1760209569278,462.69,0.00022591,2]
[390906254,1760209569516,500.0,0.00022591,2]
[390906255,1760209571463,-1435.87409019,0.00022592,2]
[390906256,1760209571515,-10000.01,0.00022592,2]
[390906257,1760209571659,-10000.01,0.00022592,2]
[390906258,1760209571786,-10000.01,0.00022592,2]
[390906259,1760209571901,-4343.35421271,0.00022592,2]
[390906260,1760209572250,300.0,0.00022591,2]
[390906261,1760209572378,238.76,0.00018823,2]
[390906262,1760209572454,500.0,0.00022591,2]
[390906263,1760209572778,274.54157458,0.00020534,2]
[390906264,1760209572801,202.98842542,0.00020534,2]
[390906265,1760209573175,716.29,0.00022246,2]
[390906266,1760209575923,500.0,0.00022591,2]
[390906267,1760209579520,500.0,0.00022591,2]
[390906268,1760209579558,500.0,0.00022591,2]
[390906269,1760209579624,500.0,0.00022591,2]
[390906270,1760209579697,500.0,0.00022591,2]
[390906271,1760209579875,500.0,0.00022591,2]
[390906272,1760209580152,500.0,0.00022591,2]
[390906273,1760209580404,500.0,0.00022591,2]
[390906274,1760209580708,541.91,0.00022591,2]
[390906275,1760209581136,500.0,0.00022591,2]
[390906276,1760209581376,500.0,0.00022591,2]
[390906277,1760209581489,500.0,0.00022591,2]
[390906278,1760209581639,500.0,0.00022591,2]
[390906279,1760209581885,500.0,0.00022591,2]
[390906280,1760209582133,218.16,0.00022591,2]
[390906281,1760209585600,500.0,0.00022591,2]
[390906282,1760209585884,500.0,0.00022591,2]
[390906283,1760209586153,500.0,0.00022591,2]
[390906284,1760209587486,5000.0,0.00022865,2]
[390906285,1760209590564,500.0,0.00022591,2]
[390906286,1760209590791,500.0,0.00022591,2]
[390906287,1760209592940,-1673.198006,0.00022935,2]
[390906288,1760209595148,500.0,0.0002259,2]
[390906289,1760209595458,500.0,0.0002259,2]
[390906290,1760209597403,500.0,0.00022591,2]
[390906291,1760209597658,500.0,0.00022591,2]
[390906292,1760209597933,500.0,0.00022591,2]
[390906293,1760209598188,500.0,0.00022591,2]
[390906294,1760209598422,375.48,0.00022591,2]
[390906295,1760209599131,500.0,0.0002259,2]
[390906296,1760209599356,500.0,0.0002259,2]
[390906297,1760209599586,500.0,0.0002259,2]
[390906298,1760209599859,500.0,0.0002259,2]
[390906299,1760209600072,500.0,0.0002259,2]
[390906300,1760209600322,500.0,0.0002259,2]
[390906301,1760209600751,278.133988,0.00022591,2]
[390906302,1760209600774,221.866012,0.00022591,2]
[390906303,1760209600875,500.0,0.0002259,2]
[390906304,1760209600904,500.0,0.00022591,2]
[390906305,1760209600931,500.0,0.0002259,2]
[390906306,1760209601077,500.0,0.00022591,2]
[390906307,1760209601170,500.0,0.0002259,2]
[390906308,1760209601273,604.19,0.00022591,2]
[390906309,1760209601398,500.0,0.0002259,2]
[390906310,1760209601549,-2527.71,0.0002299,2]
[390906311,1760209601628,500.0,0.0002259,2]
[390906312,1760209601855,500.0,0.0002259,2]
[390906313,1760209601902,-2222.20824844,0.0002299,2]
[390906314,1760209602080,-4555.59350312,0.0002299,2]
[390906315,1760209602117,500.0,0.0002259,2]
[390906316,1760209602269,-1000.0,0.0002299,2]
[390906317,1760209602318,500.0,0.0002259,2]
[390906318,1760209602538,500.0,0.0002259,2]
[390906319,1760209602762,500.0,0.0002259,2]
[390906320,1760209602996,500.0,0.0002259,2]
[390906321,1760209603230,500.0,0.0002259,2]
[390906322,1760209603500,500.0,0.0002259,2]
[390906323,1760209603747,500.0,0.0002259,2]
[390906324,1760209603982,500.0,0.0002259,2]
[390906325,1760209604210,500.0,0.0002259,2]
[390906326,1760209604287,189.72772568,0.00022591,2]
[390906327,1760209604452,500.0,0.0002259,2]
[390906328,1760209604687,415.14,0.0002259,2]
[390906329,1760209605032,500.0,0.0002259,2]
[390906330,1760209605293,500.0,0.0002259,2]
[390906331,1760209608948,500.0,0.00021917,2]
[390906332,1760209609163,500.0,0.00022591,2]
[390906333,1760209609194,503.64632139,0.00021917,2]
[390906334,1760209609324,500.0,0.00022591,2]
[390906335,1760209609386,500.0,0.00022591,2]
[390906336,1760209609562,500.0,0.00022591,2]
[390906337,1760209609610,593.49242268,0.00022591,2]
[390906338,1760209609821,500.0,0.00022591,2]
[390906339,1760209610059,500.0,0.00022591,2]
[390906340,1760209610306,399.56,0.00022591,2]
[390906341,1760209610391,5000.0,0.0002312,2]
[390906342,1760209611182,500.0,0.0002259,2]
[390906343,1760209611401,3.31125593,0.0002259,2]
[390906344,1760209611423,496.68874407,0.0002259,2]
[390906345,1760209612879,500.0,0.00022591,2]
[390906346,1760209613201,500.0,0.00022591,2]
[390906347,1760209613438,500.0,0.00022591,2]
[390906348,1760209613673,477.88,0.00022591,2]
[390906349,1760209613951,500.0,0.00021917,2]
[390906350,1760209614181,500.0,0.00021917,2]
[390906351,1760209616443,500.0,0.00022591,2]
[390906352,1760209616702,543.0,0.00022591,2]
[390906353,1760209617805,-500.0,0.00022591,2]
[390906354,1760209617881,500.0,0.00022591,2]
[390906355,1760209618151,500.0,0.00022591,2]
[390906356,1760209618406,500.0,0.00022591,2]
[390906357,1760209618641,500.0,0.00022591,2]
[390906358,1760209618929,447.02,0.00022591,2]
[390906359,1760209619941,500.0,0.00022591,2]
[390906360,1760209620174,500.0,0.00022591,2]
[390906361,1760209622077,500.0,0.00022591,2]
[390906362,1760209622396,500.0,0.00022591,2]
[390906363,1760209622636,500.0,0.00022591,2]
[390906364,1760209623730,500.0,0.00022591,2]
[390906365,1760209624015,500.0,0.00022591,2]
[390906366,1760209624232,500.0,0.0002259,2]
[390906367,1760209624513,500.0,0.0002259,2]
[390906368,1760209625100,500.0,0.00022591,2]
[390906369,1760209625339,500.0,0.00022591,2]
[390906370,1760209625579,427.7,0.00022591,2]
[390906371,1760209627320,500.0,0.00022591,2]
[390906372,1760209627543,500.0,0.00022591,2]
[390906373,1760209627801,500.0,0.00022591,2]
[390906374,1760209628072,500.0,0.00022591,2]
[390906375,1760209628314,500.0,0.00022591,2]
[390906376,1760209628729,500.0,0.00022591,2]
[390906377,1760209628832,285.98,0.00022591,2]
[390906378,1760209630298,500.0,0.0002259,2]
[390906379,1760209630535,500.0,0.0002259,2]
[390906380,1760209633423,5000.0,0.0002312,2]
[390906381,1760209635659,500.0,0.00022591,2]
[390906382,1760209635903,500.0,0.00022591,2]
[390906383,1760209636156,500.0,0.00022591,2]
[390906384,1760209638124,500.0,0.0002259,2]
[390906385,1760209638374,500.0,0.0002259,2]
[390906386,1760209638447,1901.973513,0.00022581,2]
[390906387,1760209639635,500.0,0.00022591,2]
[390906388,1760209639786,504.62623468,0.00022591,2]
[390906389,1760209640643,500.0,0.00022591,2]
[390906390,1760209640882,500.0,0.00022591,2]
[390906391,1760209641402,500.0,0.00022591,2]
[390906392,1760209641701,500.0,0.00022591,2]
[390906393,1760209641939,500.0,0.00022591,2]
[390906394,1760209642182,500.0,0.00022591,2]
[390906395,1760209645465,500.0,0.00022591,2]
[390906396,1760209645689,500.0,0.00022591,2]
[390906397,1760209645931,500.0,0.00022591,2]
[390906398,1760209647748,500.0,0.00022591,2]
[390906399,1760209647987,500.0,0.00022591,2]
[390906400,1760209648439,-287.64391034,0.00023121,2]
[390906401,1760209649312,5000.0,0.00023,2]
[390906402,1760209649917,-310.2523959,0.00023121,2]
[390906403,1760209651267,251.39,0.00018853,2]
[390906404,1760209651653,502.78,0.00020567,2]
[390906405,1760209651953,-265.29739434,0.00023121,2]
[390906406,1760209652084,754.17,0.00022281,2]
[390906407,1760209654487,-136.80629942,0.00023121,2]
[390906408,1760209654515,-211.31451558,0.00023121,2]
[390906409,1760209655784,500.0,0.0002259,2]
[390906410,1760209655911,-151.29439503,0.00023176,2]
[390906411,1760209656031,500.0,0.0002259,2]
[390906412,1760209656274,500.0,0.0002259,2]
[390906413,1760209656510,432.76,0.0002259,2]
[390906414,1760209656914,500.0,0.00022591,2]
[390906415,1760209656944,500.0,0.00022591,2]
[390906416,1760209657179,460.63993364,0.00022591,2]
[390906417,1760209657206,5000.0,0.00023121,2]
[390906418,1760209657241,500.0,0.00022591,2]
[390906419,1760209657477,500.0,0.00022591,2]
[390906420,1760209658263,500.0,0.0002259,2]
[390906421,1760209658490,500.0,0.0002259,2]
[390906422,1760209658720,500.0,0.0002259,2]
[390906423,1760209658984,500.0,0.0002259,2]
[390906424,1760209659010,500.0,0.0002259,2]
[390906425,1760209659229,500.0,0.0002259,2]
[390906426,1760209659264,500.0,0.0002259,2]
[390906427,1760209659632,402.68,0.0002259,2]
[390906428,1760209660848,-84.93424109,0.00023176,2]
[390906429,1760209661431,-1748.60605964,0.000235,2]
[390906430,1760209662030,500.0,0.00022591,2]
[390906431,1760209662303,500.0,0.00022591,2]
[390906432,1760209662961,501.48057666,0.0002259,2]
[390906433,1760209663424,-225.32896968,0.00023573,2]
[390906434,1760209664220,500.0,0.00022591,2]
[390906435,1760209664316,500.0,0.00022591,2]
[390906436,1760209664460,500.0,0.00022591,2]
[390906437,1760209664556,500.0,0.00022591,2]
[390906438,1760209664739,500.0,0.00022591,2]
[390906439,1760209664795,500.0,0.00022591,2]
[390906440,1760209665054,500.0,0.00022591,2]
[390906441,1760209665802,-274.67103032,0.00023573,2]
[390906442,1760209665824,-66.12531668,0.00023575,2]
[390906443,1760209668087,500.0,0.00022591,2]
[390906444,1760209668308,500.0,0.00022591,2]
[390906445,1760209668540,500.0,0.00022591,2]
[390906446,1760209668674,-185.46098274,0.00023575,2]
[390906447,1760209668777,500.0,0.00022591,2]
[390906448,1760209669015,278.51,0.00022591,2]
[390906449,1760209669684,500.0,0.00022591,2]
[390906450,1760209669924,500.0,0.00022591,2]
[390906451,1760209670166,500.0,0.00022591,2]
[390906452,1760209670411,500.0,0.00022591,2]
[390906453,1760209670651,500.0,0.00022591,2]
[390906454,1760209670883,500.0,0.00022591,2]
[390906455,1760209670934,500.0,0.00022591,2]
[390906456,1760209671105,-315.24115574,0.00023575,2]
[390906457,1760209671177,500.0,0.00022591,2]
[390906458,1760209671351,500.0,0.00022591,2]
[390906459,1760209671418,500.0,0.00022591,2]
[390906460,1760209671600,261.26,0.00022591,2]
[390906461,1760209671643,591.98,0.00022591,2]
[390906462,1760209673158,-300.0,0.00023575,2]
[390906463,1760209673439,1256.64292269,0.00023573,2]
[390906464,1760209674284,500.0,0.00022591,2]
[390906465,1760209674516,187.65,0.00022591,2]
[390906466,1760209678431,500.0,0.0002259,2]
[390906467,1760209678671,500.0,0.0002259,2]
[390906468,1760209679139,500.0,0.00022591,2]
[390906469,1760209679376,500.0,0.00022591,2]
[390906470,1760209680024,191.31,0.00015516,7]
[390906471,1760209681280,5000.0,0.00023573,2]
[390906472,1760209691270,500.0,0.00022591,2]
[390906473,1760209691551,500.0,0.00022591,2]
[390906474,1760209691781,500.0,0.00022591,2]
[390906475,1760209692020,500.0,0.00022591,2]
[390906476,1760209692248,500.0,0.00022591,2]
[390906477,1760209692901,500.0,0.00022591,2]
[390906478,1760209693207,500.0,0.00022591,2]
[390906479,1760209693346,-500.33211956,0.00023573,2]
[390906480,1760209693373,-500.0,0.00023573,2]
[390906481,1760209693401,-635.17506224,0.00023573,2]
[390906482,1760209693429,-500.0,0.00023573,2]
[390906483,1760209693456,-500.0,0.00023573,2]
[390906484,1760209693638,500.0,0.00022591,2]
[390906485,1760209693707,500.0,0.00022591,2]
[390906486,1760209693954,500.0,0.00022591,2]
[390906487,1760209694189,500.0,0.00022591,2]
[390906488,1760209694446,303.0,0.00022591,2]
[390906489,1760209695069,500.0,0.0002259,2]
[390906490,1760209695332,500.0,0.0002259,2]
[390906491,1760209695810,388.66,0.0002259,2]
[390906492,1760209696230,500.0,0.00022591,2]
[390906493,1760209699098,500.0,0.00022591,2]
[390906494,1760209700939,37.3356364,0.0002259,2]
[390906495,1760209700960,462.6643636,0.0002259,2]
[390906496,1760209701171,500.0,0.0002259,2]
[390906497,1760209703100,500.0,0.0002259,2]
[390906498,1760209703384,500.0,0.0002259,2]
[390906499,1760209703634,500.0,0.0002259,2]
[390906500,1760209703872,500.0,0.0002259,2]
[390906501,1760209704090,5000.0,0.00023573,2]
[390906502,1760209704146,500.0,0.0002259,2]
[390906503,1760209704377,500.0,0.0002259,2]
[390906504,1760209704636,500.0,0.0002259,2]
[390906505,1760209704862,500.0,0.0002259,2]
[390906506,1760209705092,500.0,0.0002259,2]
[390906507,1760209705327,500.0,0.0002259,2]
[390906508,1760209705562,0.01,0.0002259,2]
[390906509,1760209705585,499.99,0.0002259,2]
[390906510,1760209705807,500.0,0.0002259,2]
[390906511,1760209706060,500.0,0.0002259,2]
[390906512,1760209706297,500.0,0.0002259,2]
[390906513,1760209706524,500.0,0.0002259,2]
[390906514,1760209706763,485.18,0.0002259,2]
[390906515,1760209708248,500.0,0.00022591,2]
[390906516,1760209709367,500.0,0.0002259,2]
[390906517,1760209709659,500.0,0.0002259,2]
[390906518,1760209709936,500.0,0.0002259,2]
[390906519,1760209710168,587.96,0.0002259,2]
[390906520,1760209710310,-913.84616019,0.00023575,2]
[390906521,1760209711301,500.0,0.00022591,2]
[390906522,1760209711586,500.0,0.00022591,2]
[390906523,1760209712058,500.0,0.0002259,2]
[390906524,1760209712303,500.0,0.0002259,2]
[390906525,1760209712613,500.0,0.0002259,2]
[390906526,1760209713465,500.0,0.00022591,2]
[390906527,1760209713716,340.59,0.00022591,2]
[390906528,1760209714002,500.0,0.00022591,2]
[390906529,1760209714589,500.0,0.00022591,2]
[390906530,1760209714950,388.67717955,0.00022591,2]
[390906531,1760209715159,500.0,0.00022591,2]
[390906532,1760209715530,500.0,0.0002259,2]
[390906533,1760209715769,500.0,0.0002259,2]
[390906534,1760209716010,500.0,0.0002259,2]
[390906535,1760209716269,500.0,0.0002259,2]
[390906536,1760209716496,384.72,0.0002259,2]
[390906537,1760209716853,500.0,0.00022591,2]
[390906538,1760209717138,58.33050007,0.00022591,2]
[390906539,1760209717160,441.66949993,0.00022591,2]
[390906540,1760209717386,500.0,0.00022591,2]
[390906541,1760209718372,500.0,0.0002259,2]
[390906542,1760209718830,666.0,0.00022587,2]
[390906543,1760209719396,500.0,0.00022591,2]
[390906544,1760209719439,-1200.0,0.00023579,2]
[390906545,1760209719468,-300.0,0.00023579,2]
[390906546,1760209719668,500.0,0.00022591,2]
[390906547,1760209719900,500.0,0.00022591,2]
[390906548,1760209720143,500.0,0.00022591,2]
[390906549,1760209720374,500.0,0.00022591,2]
[390906550,1760209720608,500.0,0.00022591,2]
[390906551,1760209720843,500.0,0.00022591,2]
[390906552,1760209721110,194.54,0.00022591,2]
[390906553,1760209724452,500.0,0.00023579,2]
[390906554,1760209724692,500.0,0.00023579,2]
[390906555,1760209727055,2805.47,0.00023579,2]
[390906556,1760209727076,2194.53,0.00023579,2]
[390906557,1760209727328,500.0,0.00022591,2]
[390906558,1760209727566,500.0,0.00022591,2]
[390906559,1760209729236,500.0,0.00022591,2]
[390906560,1760209729280,500.0,0.00022591,2]
[390906561,1760209729693,238.83,0.00018838,2]
[390906562,1760209730019,477.67,0.00020551,2]
[390906563,1760209730405,716.5,0.00022263,2]
[390906564,1760209733054,-500.0,0.0002259,2]
[390906565,1760209733084,-568.27,0.00022591,2]
[390906566,1760209733253,-568.27,0.00022591,2]
[390906567,1760209733511,-568.27,0.00022591,2]
[390906568,1760209733905,-568.27,0.00022591,2]
[390906569,1760209734002,-3559.37666026,0.0002358,2]
[390906570,1760209734135,-10000.01,0.0002358,2]
[390906571,1760209734177,-568.27,0.00022591,2]
[390906572,1760209734206,-2422.83666026,0.0002358,2]
[390906573,1760209734242,-4017.79667948,0.0002358,2]
[390906574,1760209734284,-1541.79,0.0002358,3]
[390906575,1760209734312,-770.9,0.0002358,3]
[390906576,1760209734340,-385.45,0.0002358,3]
[390906577,1760209734368,-192.72,0.0002358,3]
[390906578,1760209734402,-303.03,0.0002358,3]
[390906579,1760209734435,-329.32,0.0002358,3]
[390906580,1760209734464,-164.66,0.0002358,3]
[390906581,1760209734492,-494.02,0.0002358,3]
[390906582,1760209734519,-255.67,0.0002358,10]
[390906583,1760209734547,-487.55,0.0002358,10]
[390906584,1760209734663,-568.27,0.00022591,2]
[390906585,1760209734691,-406.29,0.0002358,10]
[390906586,1760209734721,-338.57,0.0002358,10]
[390906587,1760209734857,568.27,0.00022591,2]
[390906588,1760209734982,500.0,0.00023579,2]
[390906589,1760209735009,568.27,0.00022591,2]
[390906590,1760209735045,500.0,0.00023579,2]
[390906591,1760209735072,568.27,0.00022591,2]
[390906592,1760209735222,500.0,0.00023579,2]
[390906593,1760209735277,568.27,0.00022591,2]
[390906594,1760209735454,500.0,0.00023579,2]
[390906595,1760209735507,568.27,0.00022591,2]
[390906596,1760209735718,500.0,0.00023579,2]
[390906597,1760209735754,568.27,0.00022591,2]
[390906598,1760209735949,500.0,0.00023579,2]
[390906599,1760209735990,568.27,0.00022591,2]
[390906600,1760209736174,350.66,0.00023579,2]
[390906601,1760209736236,45.2,0.00022591,2]
[390906602,1760209736258,523.07,0.00022591,2]
[390906603,1760209736509,568.27,0.00022591,2]
[390906604,1760209736761,568.27,0.00022591,2]
[390906605,1760209737023,568.27,0.00022591,2]
[390906606,1760209737274,568.27,0.00022591,2]
[390906607,1760209737524,568.27,0.00022591,2]
[390906608,1760209737772,568.27,0.00022591,2]
[390906609,1760209738019,568.27,0.00022591,2]
[390906610,1760209738439,568.27,0.00022591,2]
[390906611,1760209738536,500.0,0.00022591,2]
[390906612,1760209738712,568.27,0.00022591,2]
[390906613,1760209738786,500.0,0.00022591,2]
[390906614,1760209738942,568.35,0.00022591,2]
[390906615,1760209740515,500.0,0.00022591,2]
[390906616,1760209740741,500.0,0.00022591,2]
[390906617,1760209741910,282.15,0.0002358,10]
[390906618,1760209742373,500.0,0.00022591,2]
[390906619,1760209742622,500.0,0.00022591,2]
[390906620,1760209742838,500.0,0.0002259,2]
[390906621,1760209742930,500.0,0.00022591,2]
[390906622,1760209743121,468.02614389,0.00022591,2]
[390906623,1760209745866,500.0,0.00023579,2]
[390906624,1760209746137,500.0,0.00023579,2]
[390906625,1760209746372,500.0,0.00023579,2]
[390906626,1760209746625,500.0,0.00023579,2]
[390906627,1760209746874,500.0,0.00023579,2]
[390906628,1760209747116,500.0,0.00023579,2]
[390906629,1760209747381,500.0,0.00023579,2]
[390906630,1760209747657,500.0,0.00023579,2]
[390906631,1760209748405,503.15,0.0002259,2]
[390906632,1760209749342,5000.0,0.0002358,2]
[390906633,1760209752575,277.6,0.00023579,2]
[390906634,1760209752705,235.12,0.0002358,10]
[390906635,1760209753506,500.0,0.00022591,2]
[390906636,1760209753767,500.0,0.00022591,2]
[390906637,1760209754038,500.0,0.00022591,2]
[390906638,1760209754290,500.0,0.00022591,2]
[390906639,1760209754536,500.0,0.00022591,2]
[390906640,1760209754772,500.0,0.00022591,2]
[390906641,1760209754994,500.0,0.00022591,2]
[390906642,1760209755270,500.0,0.00022591,2]
[390906643,1760209755498,500.0,0.00022591,2]
[390906644,1760209755770,500.0,0.00022591,2]
[390906645,1760209756007,432.27,0.00022591,2]
[390906646,1760209756099,-500.0,0.00023589,2]
[390906647,1760209756128,-500.0,0.00023589,2]
[390906648,1760209756156,-500.0,0.00023589,2]
[390906649,1760209756183,-500.0,0.00023589,2]
[390906650,1760209756214,-500.0,0.00023589,2]
[390906651,1760209756243,-547.86,0.00023589,2]
[390906652,1760209756273,-500.0,0.00023589,2]
[390906653,1760209756304,-500.0,0.00023589,2]
[390906654,1760209756334,-500.0,0.00023589,2]
[390906655,1760209756363,-404.29,0.00023589,2]
[390906656,1760209756620,-95.71,0.00023589,2]
[390906657,1760209756649,-500.0,0.00023589,2]
[390906658,1760209756677,-500.0,0.00023589,2]
[390906659,1760209756704,-500.0,0.00023589,2]
[390906660,1760209756734,-500.0,0.00023589,2]
[390906661,1760209756764,-500.0,0.00023589,2]
[390906662,1760209756791,-500.0,0.00023589,2]
[390906663,1760209756827,-500.0,0.00023589,2]
[390906664,1760209756863,-500.0,0.00023589,2]
[390906665,1760209756892,-500.0,0.00023589,2]
[390906666,1760209757066,-1000.0,0.00023589,2]
[390906667,1760209757095,-500.0,0.00023589,2]
[390906668,1760209757124,-500.0,0.00023589,2]
[390906669,1760209757152,-500.0,0.00023589,2]
[390906670,1760209757181,-500.0,0.00023589,2]
[390906671,1760209757212,-500.0,0.00023589,2]
[390906672,1760209757241,-500.0,0.00023589,2]
[390906673,1760209757270,-500.0,0.00023589,2]
[390906674,1760209757298,-500.0,0.00023589,2]
[390906675,1760209757524,-500.0,0.00023589,2]
[390906676,1760209757551,-500.0,0.00023589,2]
[390906677,1760209757578,-500.0,0.00023589,2]
[390906678,1760209757605,-500.0,0.00023589,2]
[390906679,1760209757632,-500.0,0.00023589,2]
[390906680,1760209757787,-500.0,0.00023589,2]
[390906681,1760209757815,-500.0,0.00023589,2]
[390906682,1760209757842,-500.0,0.00023589,2]
[390906683,1760209757870,-295.45,0.00023589,2]
[390906684,1760209757897,-500.0,0.00023589,2]
[390906685,1760209758089,-500.0,0.00023589,2]
[390906686,1760209758117,-500.0,0.00023589,2]
[390906687,1760209758143,-500.0,0.00023589,2]
[390906688,1760209758171,-500.0,0.00023589,2]
[390906689,1760209758197,-500.0,0.00023589,2]